bitfinex-derivatives/quotes_SOLF0:USTF0_20260107
["timestamp","ask_amount","ask_price","bid_price","bid_amount"]
[1767797287418,85.68,138.03,137.93,1.11728828]
[1767797287807,85.68,138.04,137.93,1.11728828]
[1767797288318,6.5262,138.02,137.93,7.64728828]
[1767797288517,187.1899,138.03,137.9,86.77728828]
[1767797288907,187.1899,138.03,137.91,1.11728828]
[1767797289216,6.5269,138.0,137.92,6.5305]
[1767797289817,6.5269,138.0,137.92,7.64778828]
[1767797290321,6.5274,137.99,137.92,1.11728828]
[1767797290620,85.68,138.02,137.92,1.11728828]
[1767797290812,187.1968,138.02,137.9,85.66]
[1767797291118,6.5275,137.99,137.9,85.66]
[1767797291623,6.5287,137.96,137.86,1.11728828]
[1767797292619,6.5287,137.96,137.88,6.5321]
[1767797293422,101.5508,137.97,137.86,7.65068828]
[1767797293625,101.5656,137.95,137.85,85.68]
[1767797293921,6.5307,137.92,137.83,1.11728828]
[1767797294226,101.5877,137.92,137.81,85.68]
[1767797294418,101.5877,137.92,137.8,1.11728828]
[1767797294722,101.5877,137.92,137.78,101.6845]
[1767797294723,85.68,137.91,137.81,7.65298828]
[1767797295113,85.68,137.92,137.81,1.11728828]
[1767797296423,6.5321,137.89,137.81,1.11728828]
[1767797296819,187.2707,137.92,137.81,1.11728828]
[1767797297129,6.5332,137.87,137.78,7.65418828]
[1767797297427,187.3048,137.9,137.78,1.11728828]
[1767797298526,6.5327,137.88,137.8,1.11728828]
[1767797298916,85.72,137.9,137.8,1.11728828]
[1767797299316,6.5321,137.89,137.8,7.65338828]
[1767797299829,6.5326,137.88,137.8,7.65338828]
[1767797300033,6.5326,137.88,137.8,1.11728828]
[1767797300823,92.2516,137.9,137.8,7.65338828]
[1767797301028,85.72,137.9,137.8,7.65338828]
[1767797301219,85.72,137.9,137.8,1.11728828]
[1767797301422,6.5313,137.91,137.81,1.11728828]
[1767797301824,101.5874,137.92,137.81,1.11728828]
[1767797302729,6.5316,137.9,137.81,7.65278828]
[1767797303123,6.5321,137.89,137.81,1.11728828]
[1767797303327,101.5874,137.92,137.81,1.11728828]
[1767797303328,101.5969,137.91,137.81,1.11728828]
[1767797303534,101.6032,137.9,137.78,1.11728828]
[1767797304424,6.5337,137.86,137.78,1.11728828]
[1767797304725,85.74,137.87,137.78,1.11728828]
[1767797304929,101.6095,137.89,137.78,1.11728828]
[1767797305125,6.5335,137.86,137.78,1.11728828]
[1767797306428,6.5335,137.86,137.78,7.65438828]
[1767797307130,6.5341,137.85,137.78,1.11728828]
[1767797307725,6.5344,137.84,137.78,1.11728828]
[1767797307926,101.6321,137.86,137.75,86.83728828]
[1767797308121,101.6321,137.86,137.75,1.11728828]
[1767797308434,187.3921,137.86,137.75,1.11728828]
[1767797308841,6.5357,137.82,137.75,1.11728828]
[1767797309422,85.76,137.83,137.73,6.5392]
[1767797309630,101.6621,137.82,137.72,1.11728828]
[1767797309836,101.6689,137.81,137.72,1.11728828]
[1767797310133,101.6765,137.8,137.69,1.11728828]
[1767797310338,101.6835,137.79,137.69,1.11728828]
[1767797310827,6.5383,137.76,137.69,1.11728828]
[1767797311829,6.5383,137.76,137.69,7.65858828]
[1767797312332,6.5388,137.75,137.69,1.11728828]
[1767797312927,85.78,137.79,137.69,1.46]
[1767797313131,187.4659,137.79,137.67,1.20297721]
[1767797313435,6.5388,137.75,137.67,1.20297721]
[1767797314536,6.5388,137.75,137.67,7.74517721]
[1767797315234,124.0,137.8,137.68,1.20297721]
[1767797315427,8.79337578,137.83,137.68,1.20297721]
[1767797315632,85.78,137.81,137.69,1.20297721]
[1767797315829,85.78,137.8,137.69,1.20297721]
[1767797316535,85.8,137.8,137.69,1.20297721]
[1767797317631,92.3363,137.8,137.71,6.5402]
[1767797318340,85.8,137.8,137.72,6.54]
[1767797318642,6.5357,137.82,137.7,1.20297721]
[1767797318830,85.8,137.81,137.7,1.20297721]
[1767797319345,92.3358,137.81,137.7,1.20297721]
[1767797319536,6.5358,137.81,137.7,1.20297721]
[1767797319849,101.6203,137.88,137.74,1.20297721]
[1767797320040,85.8,137.87,137.75,1.20297721]
[1767797320938,101.6197,137.88,137.75,1.20297721]
[1767797321242,85.8,137.86,137.75,1.20297721]
[1767797321540,6.5341,137.85,137.76,6.5378]
[1767797321941,124.0,137.89,137.77,1.20297721]
[1767797322132,6.5323,137.89,137.81,6.5357]
[1767797322332,6.5323,137.89,137.79,1.20297721]
[1767797322730,92.3323,137.89,137.79,1.20297721]
[1767797323139,85.8,137.89,137.8,6.5361]
[1767797323335,85.8,137.9,137.79,1.20297721]
[1767797323530,85.8,137.9,137.76,187.4824]
[1767797323531,187.4057,137.9,137.77,1.20297721]
[1767797323846,85.8,137.89,137.77,1.20297721]
[1767797324339,6.5322,137.89,137.79,7.73957721]
[1767797324531,92.3322,137.89,137.79,7.73957721]
[1767797325028,6.5326,137.88,137.79,7.73957721]
[1767797325441,101.5754,137.94,137.81,1.20297721]
[1767797325743,85.8,137.93,137.81,1.20297721]
[1767797325944,225.5754,137.94,137.81,1.20297721]
[1767797326145,85.8,137.93,137.81,1.20297721]
[1767797326441,85.8,137.93,137.83,1.20297721]
[1767797326844,187.3833,137.93,137.83,1.20297721]
[1767797327235,85.8,137.92,137.83,1.20297721]
[1767797328134,6.5308,137.92,137.84,1.20297721]
[1767797328940,6.5299,137.94,137.84,1.20297721]
[1767797329244,85.78,137.96,137.84,1.20297721]
[1767797329432,85.78,137.96,137.85,1.20297721]
[1767797329635,6.5294,137.95,137.86,6.5333]
[1767797330145,6.5298,137.94,137.85,7.73667721]
[1767797330950,6.5302,137.93,137.85,7.73667721]
[1767797331833,187.3417,137.96,137.86,6.5332]
[1767797333048,6.5304,137.93,137.85,1.20297721]
[1767797333751,101.5309,138.0,137.87,1.20297721]
[1767797334049,85.76,137.99,137.87,1.20297721]
[1767797334238,209.76,137.99,137.87,1.20297721]
[1767797334439,6.5285,137.97,137.87,7.73557721]
[1767797334639,311.2989,137.99,137.87,7.73557721]
[1767797335251,6.5288,137.96,137.87,7.73557721]
[1767797335450,101.5442,137.98,137.87,7.73557721]
[1767797335748,101.5442,137.98,137.87,6.5326]
[1767797336149,124.0,137.97,137.87,6.5326]
[1767797336644,225.5538,137.97,137.85,92.2737]
[1767797337649,6.5299,137.94,137.85,92.2737]
[1767797337846,85.76,137.94,137.85,92.2737]
[1767797338148,101.5654,137.95,137.83,6.5345]
[1767797338341,85.76,137.93,137.83,6.5345]
[1767797338541,101.5654,137.95,137.83,6.5345]
[1767797338746,6.5311,137.91,137.83,6.5345]
[1767797339133,6.5311,137.91,137.81,1.20297721]
[1767797339336,92.2711,137.91,137.81,1.20297721]
[1767797340650,92.2711,137.91,137.82,6.5352]
[1767797340843,187.339,137.91,137.79,85.74]
[1767797341050,187.339,137.91,137.8,1.21224611]
[1767797341349,6.5321,137.89,137.8,1.21224611]
[1767797341846,6.5321,137.89,137.8,7.74844611]
[1767797342441,6.5312,137.91,137.82,1.19241736]
[1767797342739,85.74,137.91,137.82,1.19241736]
[1767797343355,6.5314,137.91,137.82,1.19241736]
[1767797345545,85.76,137.93,137.84,1.19241736]
[1767797345746,85.76,137.95,137.84,1.19241736]
[1767797345944,101.5815,137.93,137.81,1.19241736]
[1767797346351,187.3415,137.93,137.81,1.19241736]
[1767797346546,6.5321,137.89,137.82,1.19241736]
[1767797347338,6.5326,137.88,137.8,85.74]
[1767797347745,85.76,137.9,137.8,92.2759]
[1767797347944,6.5321,137.89,137.8,7.72831736]
[1767797348145,101.5754,137.94,137.8,1.19241736]
[1767797348350,85.76,137.93,137.8,1.19241736]
[1767797348851,85.76,137.93,137.82,1.19241736]
[1767797349046,234.34637578,137.97,137.83,1.19241736]
[1767797349243,85.76,137.96,137.86,1.19241736]
[1767797349450,101.5292,138.0,137.86,1.19241736]
[1767797349954,101.558,137.96,137.84,85.74]
[1767797350255,6.5307,137.92,137.84,85.74]
[1767797350444,187.3263,137.95,137.83,6.5347]
[1767797350445,101.5744,137.94,137.83,6.5347]
[1767797350649,85.74,137.93,137.82,1.19241736]
[1767797350851,101.5876,137.92,137.81,6.5354]
[1767797351047,101.5876,137.92,137.79,1.19241736]
[1767797351048,124.0,137.91,137.79,1.19241736]
[1767797351245,129.41920517,137.91,137.79,1.19241736]
[1767797351450,6.5326,137.88,137.79,7.72871736]
[1767797352553,101.6104,137.89,137.77,6.5374]
[1767797352852,101.6104,137.89,137.76,1.19241736]
[1767797353349,129.41920517,137.91,137.78,1.19241736]
[1767797353555,85.76,137.9,137.78,1.19241736]
[1767797354952,85.76,137.9,137.79,1.19241736]
[1767797355158,6.5317,137.9,137.81,1.19241736]
[1767797355553,85.76,137.91,137.81,1.19241736]
[1767797355759,85.76,137.91,137.82,7.72761736]
[1767797356661,92.2911,137.91,137.82,7.72761736]
[1767797356957,85.76,137.91,137.84,1.19241736]
[1767797357463,6.5304,137.93,137.84,7.72661736]
[1767797357659,85.76,137.95,137.85,1.19241736]
[1767797358057,6.5297,137.94,137.87,1.19241736]
[1767797359264,6.5291,137.96,137.88,1.19241736]
[1767797360559,6.5291,137.96,137.88,7.72471736]
[1767797360764,187.2992,137.99,137.88,1.19241736]
[1767797361264,6.5302,137.93,137.86,86.93241736]
[1767797361459,101.5514,137.97,137.86,86.93241736]
[1767797362053,6.5298,137.94,137.86,86.93241736]
[1767797364661,6.5302,137.93,137.83,7.72691736]
[1767797364862,101.5689,137.95,137.83,7.72691736]
[1767797365155,101.5849,137.93,137.83,1.19241736]
[1767797365359,101.5849,137.93,137.8,1.19241736]
[1767797365360,101.5882,137.92,137.8,1.19241736]
[1767797365758,6.5321,137.89,137.8,1.19241736]
[1767797366368,85.74,137.91,137.81,1.19241736]
[1767797367071,6.5321,137.89,137.81,1.19241736]
[1767797368066,92.2714,137.91,137.81,7.72801736]
[1767797368262,85.74,137.91,137.81,7.72801736]
[1767797368659,187.338,137.91,137.81,1.19241736]
[1767797368970,187.338,137.91,137.79,93.44881736]
[1767797369269,6.5326,137.88,137.79,93.44881736]
[1767797370268,6.5326,137.88,137.81,1.19241736]
[1767797370665,6.5319,137.9,137.81,1.19241736]
[1767797370871,187.338,137.91,137.81,1.19241736]
[1767797371072,85.74,137.91,137.82,1.19241736]
[1767797371271,6.5316,137.9,137.82,1.19241736]
[1767797371672,85.74,137.91,137.82,1.19241736]
[1767797372566,6.5321,137.89,137.82,1.19241736]
[1767797373572,6.5326,137.88,137.82,1.19241736]
[1767797374670,6.533,137.87,137.82,1.19241736]
[1767797375578,6.533,137.87,137.8,6.5362]
[1767797375966,101.6169,137.88,137.79,86.86073107]
[1767797376469,101.6169,137.88,137.79,1.14073107]
[1767797377275,6.5331,137.87,137.79,1.14073107]
[1767797377671,101.6345,137.86,137.73,1.14073107]
[1767797377870,101.6399,137.85,137.73,86.88073107]
[1767797378083,6.5358,137.81,137.73,86.88073107]
[1767797378380,85.76,137.81,137.7,1.14073107]
[1767797378677,187.4318,137.81,137.7,1.14073107]
[1767797378978,85.76,137.8,137.7,1.14073107]
[1767797379579,6.5374,137.78,137.7,1.14073107]
[1767797379781,85.76,137.8,137.7,7.68153107]
[1767797380183,6.537,137.79,137.7,7.68153107]
[1767797380979,6.5373,137.78,137.7,7.68153107]
[1767797381193,6.5373,137.78,137.68,6.5416]
[1767797381492,91.17920517,137.8,137.68,6.5416]
[1767797381493,85.78,137.77,137.68,6.5416]
[1767797382577,6.5383,137.76,137.68,6.5416]
[1767797384880,101.7054,137.76,137.65,85.76]
[1767797385074,101.7054,137.76,137.65,86.90073107]
[1767797385280,85.8,137.75,137.65,86.90073107]
[1767797385572,85.8,137.75,137.65,1.14073107]
[1767797385573,101.7207,137.74,137.65,1.14073107]
[1767797386483,85.8,137.74,137.65,1.14073107]
[1767797387176,92.3393,137.74,137.65,1.14073107]
[1767797387376,107.12110517,137.77,137.65,1.14073107]
[1767797387583,85.8,137.75,137.65,1.14073107]
[1767797388575,6.5398,137.73,137.65,1.14073107]
[1767797389490,101.7245,137.74,137.62,7.68523107]
[1767797389693,101.728,137.73,137.62,7.68523107]
[1767797389892,85.82,137.72,137.62,1.14073107]
[1767797390297,6.5412,137.7,137.62,1.14073107]
[1767797390588,85.82,137.73,137.62,1.14073107]
[1767797391588,6.5402,137.72,137.63,6.5439]
[1767797391985,6.5402,137.72,137.63,7.68463107]
[1767797392390,6.5394,137.74,137.65,1.14073107]
[1767797392592,85.84,137.74,137.62,1.14073107]
[1767797393193,6.5402,137.72,137.64,7.68443107]
[1767797395499,85.84,137.74,137.65,6.5433]
[1767797395796,85.84,137.74,137.64,7.68453107]
[1767797395797,6.5402,137.72,137.64,7.68453107]
[1767797396998,6.5402,137.72,137.65,6.5433]
[1767797398287,6.5402,137.72,137.64,1.14073107]
[1767797398489,101.7275,137.73,137.64,1.14073107]
[1767797398693,187.5635,137.74,137.64,1.14073107]
[1767797398900,85.84,137.74,137.65,7.68403107]
[1767797399095,85.84,137.74,137.65,1.14073107]
[1767797399590,92.3792,137.74,137.66,6.5427]
[1767797399792,187.5622,137.74,137.61,1.14073107]
[1767797400094,85.84,137.74,137.64,1.14073107]
[1767797400294,5.41920517,137.76,137.64,1.14073107]
[1767797400493,85.86,137.75,137.64,1.14073107]
[1767797401199,6.5392,137.74,137.66,6.5428]
[1767797401500,85.86,137.75,137.65,1.12974176]
[1767797402087,107.15460517,137.72,137.6,1.22399559]
[1767797402291,5.41920517,137.72,137.6,1.22399559]
[1767797402492,85.86,137.71,137.6,1.22399559]
[1767797402687,124.0,137.7,137.6,1.22399559]
[1767797402893,6.5418,137.69,137.6,7.76939559]
[1767797403196,124.0,137.7,137.6,1.22399559]
[1767797403399,101.7573,137.69,137.57,1.22399559]
[1767797403995,92.4024,137.68,137.6,6.5456]
[1767797404197,85.86,137.68,137.6,1.22399559]
[1767797404599,5.41920517,137.73,137.6,1.22399559]
[1767797404796,85.86,137.71,137.6,1.22399559]
[1767797405698,101.751,137.7,137.58,85.84]
[1767797406004,101.7603,137.69,137.58,93.61029559]
[1767797406900,6.5435,137.65,137.58,85.84]
[1767797407107,6.5435,137.65,137.55,1.22399559]
[1767797407502,6.5435,137.65,137.56,7.77159559]
[1767797407802,6.543,137.66,137.56,1.22399559]
[1767797408603,187.6579,137.67,137.56,1.22399559]
[1767797409195,85.88,137.67,137.56,7.77159559]
[1767797409597,187.6546,137.67,137.57,1.22399559]
[1767797409905,6.5445,137.63,137.57,1.22399559]
[1767797410110,101.7883,137.65,137.54,1.22399559]
[1767797410405,85.88,137.64,137.54,1.22399559]
[1767797411002,6.5449,137.62,137.54,7.77249559]
[1767797411609,6.5449,137.62,137.55,1.22399559]
[1767797412901,92.4242,137.64,137.56,1.22399559]
[1767797413107,101.7603,137.69,137.56,1.22399559]
[1767797413308,92.4222,137.68,137.6,7.76969559]
[1767797413508,85.88,137.68,137.6,1.22399559]
[1767797413709,101.7552,137.7,137.6,1.22399559]
[1767797414007,6.543,137.66,137.6,1.22399559]
[1767797415314,6.543,137.66,137.58,7.77059559]
[1767797416214,6.5424,137.68,137.59,1.22399559]
[1767797416613,6.5424,137.68,137.57,101.8402]
[1767797416614,6.5413,137.7,137.62,1.22399559]
[1767797416814,85.9,137.71,137.62,1.22399559]
[1767797417415,101.7152,137.75,137.64,1.22399559]
[1767797417416,85.9,137.75,137.64,1.22399559]
[1767797417812,85.9,137.74,137.65,1.22399559]
[1767797418118,88.76795,137.76,137.65,1.22399559]
[1767797418418,6.5392,137.74,137.66,6.5428]
[1767797418719,88.76795,137.76,137.66,6.5428]
[1767797418920,6.5387,137.75,137.66,6.5428]
[1767797422517,2.86795,137.76,137.67,1.22399559]
[1767797423921,2.86795,137.76,137.68,1.22399559]
[1767797424415,2.86795,137.76,137.69,7.76539559]
[1767797425125,2.86795,137.76,137.7,1.22399559]
[1767797425428,2.86795,137.76,137.7,7.76489559]
[1767797425718,2.86795,137.76,137.71,1.22399559]
[1767797430127,2.86795,137.76,137.68,1.22399559]
[1767797430327,2.86795,137.76,137.65,1.22399559]
[1767797431224,6.5396,137.73,137.65,1.22399559]
[1767797431429,101.7135,137.75,137.65,1.22399559]
[1767797431936,6.5402,137.72,137.65,7.76729559]
[1767797432432,2.86795,137.76,137.65,1.22399559]
[1767797432636,9.40635,137.76,137.68,6.5419]
[1767797433219,2.86795,137.76,137.69,1.20332111]
[1767797433836,2.86795,137.76,137.7,6.5409]
[1767797435435,124.0,137.83,137.72,1.20332111]
[1767797435632,85.86,137.83,137.72,1.20332111]
[1767797435825,187.5198,137.83,137.72,1.20332111]
[1767797436030,6.5369,137.79,137.71,6.5403]
[1767797437332,101.6421,137.85,137.72,1.20332111]
[1767797437542,187.4821,137.85,137.72,1.20332111]
[1767797437834,6.535,137.83,137.74,7.74222111]
[1767797438828,6.535,137.83,137.75,6.5386]
[1767797439243,6.535,137.83,137.74,1.20332111]
[1767797440134,6.5354,137.82,137.74,7.74222111]
[1767797440336,101.6467,137.84,137.74,1.20332111]
[1767797440540,101.6649,137.82,137.71,1.20332111]
[1767797440927,6.5371,137.79,137.71,7.74372111]
[1767797441442,101.6717,137.81,137.71,1.20332111]
[1767797441941,6.5374,137.78,137.71,1.20332111]
[1767797442134,101.6772,137.8,137.71,1.20332111]
[1767797443633,6.5378,137.77,137.71,1.20332111]
[1767797443932,101.6833,137.79,137.69,6.5414]
[1767797444132,101.6833,137.79,137.69,7.74472111]
[1767797444732,101.6833,137.79,137.69,6.5414]
[1767797444937,6.5387,137.75,137.67,6.5423]
[1767797445342,6.5387,137.75,137.67,7.74562111]
[1767797445540,6.5387,137.75,137.68,6.5419]
[1767797445741,6.5379,137.77,137.69,1.20332111]
[1767797446634,6.5379,137.77,137.7,7.74412111]
[1767797447029,6.537,137.79,137.7,1.20332111]
[1767797447238,101.6478,137.84,137.72,1.20332111]
[1767797447744,101.6478,137.84,137.73,1.20332111]
[1767797447940,6.5363,137.8,137.73,7.74282111]
[1767797448138,101.6582,137.83,137.73,1.20332111]
[1767797448642,187.4982,137.83,137.73,1.20332111]
[1767797448944,187.4982,137.83,137.73,7.74282111]
[1767797449241,101.6644,137.82,137.72,85.82]
[1767797449633,101.6644,137.82,137.72,87.02332111]
[1767797450544,6.5369,137.79,137.72,93.56332111]
[1767797450938,187.4982,137.83,137.72,87.02332111]
[1767797451332,85.84,137.83,137.73,7.74292111]
[1767797451538,85.84,137.83,137.73,1.20332111]
[1767797452634,6.5358,137.81,137.74,6.5391]
[1767797453046,187.4993,137.83,137.72,85.82]
[1767797453234,101.6728,137.81,137.7,1.20332111]
[1767797453438,101.6766,137.8,137.66,1.20332111]
[1767797453645,85.82,137.79,137.67,1.20332111]
[1767797453945,187.5086,137.79,137.67,1.20332111]
[1767797454448,6.5387,137.75,137.67,7.74532111]
[1767797456445,6.5391,137.74,137.67,7.74532111]
[1767797457750,6.5391,137.74,137.67,1.20332111]
[1767797458333,101.7138,137.75,137.65,85.82]
[1767797459148,187.5484,137.76,137.65,7.74662111]
[1767797459744,101.6911,137.78,137.67,1.20332111]
[1767797460047,85.84,137.77,137.67,1.20332111]
[1767797460241,114.7171,137.84,137.7,1.20332111]
[1767797460436,85.84,137.83,137.7,1.20332111]
[1767797460741,85.84,137.83,137.72,7.71971372]
[1767797461358,101.662,137.82,137.72,1.18001372]
[1767797461645,187.502,137.82,137.71,85.82]
[1767797461852,6.5387,137.75,137.67,6.5421]
[1767797462251,101.6951,137.78,137.67,1.28127026]
[1767797462551,101.7079,137.76,137.65,92.3632]
[1767797462852,85.84,137.75,137.65,92.3632]
[1767797463054,85.84,137.75,137.65,85.82]
[1767797463238,85.84,137.75,137.64,1.28127026]
[1767797463547,85.84,137.74,137.64,1.28127026]
[1767797464146,101.7357,137.72,137.59,9.00185753]
[1767797464351,101.7423,137.71,137.59,1.28127026]
[1767797464649,187.5823,137.71,137.59,1.28127026]
[1767797464846,101.7423,137.71,137.59,1.28127026]
[1767797465050,85.84,137.7,137.59,1.28127026]
[1767797465448,92.3813,137.7,137.6,7.82677026]
[1767797465756,85.84,137.7,137.6,1.28127026]
[1767797466751,6.5422,137.68,137.6,1.28127026]
[1767797466945,85.84,137.7,137.6,1.28127026]
[1767797467342,6.5416,137.69,137.6,1.28127026]
[1767797467548,6.5416,137.69,137.61,1.28127026]
[1767797468548,6.5416,137.69,137.61,7.82637026]
[1767797469549,6.5416,137.69,137.61,1.28127026]
[1767797469853,101.7544,137.7,137.59,92.3859]
[1767797470149,85.86,137.69,137.59,92.3859]
[1767797470350,85.86,137.69,137.59,93.66717026]
[1767797470655,6.5427,137.67,137.59,93.66717026]
[1767797471445,92.4017,137.69,137.6,1.28127026]
[1767797471643,85.86,137.69,137.6,1.28127026]
[1767797472457,6.5426,137.67,137.6,1.28127026]
[1767797474858,101.7737,137.67,137.57,87.14127026]
[1767797475051,101.7673,137.68,137.57,87.14127026]
[1767797476345,6.5426,137.67,137.58,1.28127026]
[1767797476758,187.641,137.69,137.58,1.28127026]
[1767797477251,85.88,137.68,137.58,1.28127026]
[1767797477654,6.543,137.66,137.58,1.28127026]
[1767797478350,6.543,137.66,137.58,7.82787026]
[1767797478552,92.4223,137.68,137.58,7.82787026]
[1767797478854,6.5423,137.68,137.59,6.5461]
[1767797479153,85.88,137.68,137.58,1.28127026]
[1767797479556,6.543,137.66,137.58,1.28127026]
[1767797479753,101.7796,137.66,137.57,85.86]
[1767797479954,101.7869,137.65,137.55,1.28127026]
[1767797480166,85.88,137.64,137.52,1.28127026]
[1767797480457,6.5453,137.61,137.53,7.83007026]
[1767797481061,101.8171,137.61,137.51,85.88]
[1767797481360,187.7039,137.6,137.5,1.28127026]
[1767797481862,101.831,137.59,137.47,93.71287026]
[1767797482370,85.88,137.58,137.48,1.28127026]
[1767797482567,101.8509,137.57,137.48,1.28127026]
[1767797483051,92.4479,137.56,137.48,1.28127026]
[1767797483248,85.9,137.56,137.48,1.28127026]
[1767797483655,101.8164,137.61,137.48,1.28127026]
[1767797483947,101.8465,137.57,137.45,1.28127026]
[1767797484360,101.8532,137.56,137.45,1.28127026]
[1767797484556,85.9,137.55,137.45,1.28127026]
[1767797484759,85.9,137.54,137.45,1.28127026]
[1767797484958,6.5494,137.53,137.43,92.4536]
[1767797485557,6.5497,137.52,137.43,92.4536]
[1767797485763,6.5497,137.52,137.43,85.9]
[1767797485964,85.92,137.51,137.42,1.28127026]
[1767797487160,85.92,137.52,137.43,1.28127026]
[1767797488267,92.4697,137.52,137.43,7.83477026]
[1767797488666,92.4697,137.52,137.43,1.28127026]
[1767797488868,6.5497,137.52,137.43,1.28127026]
[1767797489361,85.94,137.53,137.43,1.28127026]
[1767797489362,6.5503,137.51,137.43,1.28127026]
[1767797490668,101.8636,137.55,137.44,1.28127026]
[1767797490865,101.8754,137.53,137.44,1.28127026]
[1767797491064,101.8856,137.52,137.41,15.33347574]
[1767797491264,6.5512,137.49,137.41,15.33347574]
[1767797492565,6.5503,137.51,137.42,1.3003439]
[1767797492863,5.43691844,137.55,137.43,1.3003439]
[1767797493165,85.96,137.54,137.43,1.3003439]
[1767797493369,85.96,137.54,137.46,1.3003439]
[1767797493758,85.96,137.55,137.46,1.3003439]
[1767797494366,107.27631844,137.58,137.46,1.3003439]
[1767797494367,5.43691844,137.58,137.46,1.3003439]
[1767797494559,101.8269,137.6,137.46,1.3003439]
[1767797494560,85.96,137.57,137.46,1.3003439]
[1767797494762,6.5478,137.56,137.46,1.3003439]
[1767797494966,101.8346,137.59,137.48,7.8515439]
[1767797495273,85.96,137.58,137.48,7.8515439]
[1767797495469,101.8346,137.59,137.48,7.8515439]
[1767797495672,85.96,137.58,137.48,7.8515439]
[1767797495970,85.96,137.58,137.48,1.3003439]
[1767797496176,101.8314,137.59,137.45,189.1909439]
[1767797496482,107.26831844,137.59,137.46,1.3003439]
[1767797496771,6.5477,137.56,137.48,6.5514]
[1767797496966,85.96,137.59,137.48,1.3003439]
[1767797497167,107.23911844,137.63,137.5,1.3003439]
[1767797497368,85.96,137.62,137.5,1.3003439]
[1767797497667,85.96,137.61,137.5,1.3003439]
[1767797498169,85.96,137.61,137.5,7.8505439]
[1767797498870,6.5465,137.59,137.51,6.5499]
[1767797499071,85.96,137.61,137.51,6.5499]
[1767797500374,6.5459,137.6,137.51,6.5499]
[1767797501169,6.5459,137.6,137.52,6.5495]
[1767797501572,6.5452,137.62,137.51,1.3003439]
[1767797501774,85.96,137.62,137.53,6.549]
[1767797501973,85.96,137.62,137.51,1.3003439]
[1767797502168,6.5455,137.61,137.51,1.3003439]
[1767797502370,85.96,137.62,137.51,7.8501439]
[1767797502570,187.7725,137.62,137.51,7.8501439]
[1767797502769,101.8167,137.61,137.51,1.3003439]
[1767797503374,187.7725,137.62,137.51,1.3003439]
[1767797503674,85.96,137.62,137.51,1.3003439]
[1767797504274,6.5458,137.6,137.52,6.5495]
[1767797504982,6.5458,137.6,137.52,1.3003439]
[1767797505675,6.5458,137.6,137.53,6.549]
[1767797505876,85.96,137.65,137.54,1.3003439]
[1767797506688,107.21191844,137.67,137.54,1.3003439]
[1767797506979,85.96,137.65,137.54,1.3003439]
[1767797507175,85.96,137.65,137.55,1.3003439]
[1767797507381,187.7278,137.68,137.55,1.3003439]
[1767797507778,6.5435,137.65,137.56,1.3003439]
[1767797509579,6.5435,137.65,137.56,7.8478439]
[1767797510483,6.5435,137.65,137.57,7.8474439]
[1767797510684,6.5435,137.65,137.54,193.24141844]
[1767797510685,6.5428,137.67,137.58,1.3003439]
[1767797511378,187.7283,137.68,137.57,6.5468]
[1767797511784,101.7879,137.65,137.53,1.3003439]
[1767797512089,101.7952,137.64,137.53,1.3003439]
[1767797512586,187.7425,137.63,137.53,1.3003439]
[1767797512985,6.5452,137.62,137.53,7.8492439]
[1767797513186,101.8161,137.61,137.49,1.3003439]
[1767797513481,6.5473,137.57,137.49,7.8510439]
[1767797514289,6.5465,137.59,137.5,6.5504]
[1767797514489,85.94,137.63,137.52,1.3003439]
[1767797514888,101.7881,137.65,137.52,1.3003439]
[1767797515091,85.94,137.64,137.52,1.3003439]
[1767797515276,187.7367,137.64,137.52,7.8496439]
[1767797515484,101.8091,137.62,137.5,87.2203439]
[1767797515784,6.5463,137.59,137.5,87.2203439]
[1767797516194,187.7576,137.61,137.5,87.2203439]
[1767797516498,101.833,137.59,137.5,85.92]
[1767797516694,101.833,137.59,137.47,1.3003439]